[Event "January 9 Late 2024"]
[Site "https://www.chess.com"]
[Date "2024.01.10"]
[Round "11"]
[White "Stopa, Jacek"]
[Black "Bellissimo, Joseph F."]
[Result "1-0"]
[Board "68"]
[TimeControl "180+1"]
[WhiteFideId "1119591"]
[BlackFideId "2609843"]
[WhiteElo "2768"]
[BlackElo "2505"]
[WhiteTeam "POL"]
[BlackTeam "CAN"]
[WhiteClock "0:00:44"]
[BlackClock "0:00:00"]

1. d4 {[%clk 0:02:57]}  Nf6 {[%clk 0:02:59]} 2. c4 {[%clk 0:02:57]}  e6 {[%clk 0:03:00]} 3. Nf3 {[%clk 0:02:57]}  d5 {[%clk 0:02:59]} 4. g3 {[%clk 0:02:57]}  Bb4+ {[%clk 0:02:59]} 5. Bd2 {[%clk 0:02:57]}  Be7 {[%clk 0:03:00]} 6. Bg2 {[%clk 0:02:57]}  O-O {[%clk 0:03:00]} 7. Qc2 {[%clk 0:02:58]}  c6 {[%clk 0:02:58]} 8. O-O {[%clk 0:02:58]}  b6 {[%clk 0:02:58]} 9. Bf4 {[%clk 0:02:58]}  Nbd7 {[%clk 0:02:56]} 10. cxd5 {[%clk 0:02:48]}  cxd5 {[%clk 0:02:55]} 11. Bc7 {[%clk 0:02:48]}  Qe8 {[%clk 0:02:54]} 12. Na3 {[%clk 0:02:48]}  Ba6 {[%clk 0:02:49]} 13. Rfc1 {[%clk 0:02:47]}  Rc8 {[%clk 0:02:47]} 14. Qd1 {[%clk 0:02:42]}  Ne4 {[%clk 0:02:38]} 15. e3 {[%clk 0:02:37]}  Bd6 {[%clk 0:02:34]} 16. Bxd6 {[%clk 0:02:19]}  Nxd6 {[%clk 0:02:35]} 17. Qa4 {[%clk 0:02:19]}  Nb8 {[%clk 0:02:34]} 18. Qb4 {[%clk 0:02:16]}  Qe7 {[%clk 0:02:14]} 19. Ne5 {[%clk 0:02:08]}  f6 {[%clk 0:02:13]} 20. Nf3 {[%clk 0:02:08]}  Nc6 {[%clk 0:01:59]} 21. Qa4 {[%clk 0:02:00]}  Qb7 {[%clk 0:01:59]} 22. Bh3 {[%clk 0:01:57]}  Kf7 {[%clk 0:01:56]} 23. Qd1 {[%clk 0:01:56]}  Nb4 {[%clk 0:01:52]} 24. Rxc8 {[%clk 0:01:50]}  Rxc8 {[%clk 0:01:50]} 25. Ne1 {[%clk 0:01:49]}  g6 {[%clk 0:01:47]} 26. Qg4 {[%clk 0:01:49]}  Qe7 {[%clk 0:01:44]} 27. Qd1 {[%clk 0:01:46]}  Qd7 {[%clk 0:01:38]} 28. Nac2 {[%clk 0:01:38]}  Nxc2 {[%clk 0:01:36]} 29. Nxc2 {[%clk 0:01:39]}  Nc4 {[%clk 0:01:34]} 30. b3 {[%clk 0:01:34]}  Nd6 {[%clk 0:01:25]} 31. Nb4 {[%clk 0:01:34]}  Bb7 {[%clk 0:01:16]} 32. Nd3 {[%clk 0:01:34]}  Ne4 {[%clk 0:01:14]} 33. Nf4 {[%clk 0:01:26]}  Ng5 {[%clk 0:01:12]} 34. Bg2 {[%clk 0:01:27]}  e5 {[%clk 0:00:53]} 35. dxe5 {[%clk 0:01:19]}  fxe5 {[%clk 0:00:53]} 36. Nxd5 {[%clk 0:01:03]}  Rd8 {[%clk 0:00:29]} 37. e4 {[%clk 0:00:55]}  Nxe4 {[%clk 0:00:10]} 38. Bxe4 {[%clk 0:00:55]}  Bxd5 {[%clk 0:00:11]} 39. Qf3+ {[%clk 0:00:55]}  Ke6 {[%clk 0:00:08]} 40. Rd1 {[%clk 0:00:46]}  Qc6 {[%clk 0:00:06]} 41. Qg4+ {[%clk 0:00:44]}  Ke7 {[%clk 0:00:00]} 42. Qg5+ {[%clk 0:00:44]} 1-0

[Event "January 9 Late 2024"]
[Site "https://www.chess.com"]
[Date "2024.01.09"]
[Round "11"]
[White "Mullodzhanov, Nathaniel"]
[Black "Bardyk, Artem"]
[Result "1-0"]
[Board "69"]
[TimeControl "180+1"]
[WhiteFideId "30961580"]
[BlackFideId "34349979"]
[WhiteElo "2510"]
[BlackElo "2725"]
[WhiteTeam "USA"]
[BlackTeam "RUS"]
[WhiteClock "0:00:26"]
[BlackClock "0:00:01"]

1. e4 {[%clk 0:03:00]}  e5 {[%clk 0:02:57]} 2. Nf3 {[%clk 0:03:00]}  Nc6 {[%clk 0:02:55]} 3. d4 {[%clk 0:03:00]}  exd4 {[%clk 0:02:55]} 4. Nxd4 {[%clk 0:03:01]}  Bb4+ {[%clk 0:02:55]} 5. c3 {[%clk 0:03:00]}  Bc5 {[%clk 0:02:55]} 6. Be3 {[%clk 0:03:00]}  Bb6 {[%clk 0:02:54]} 7. Bc4 {[%clk 0:02:59]}  d6 {[%clk 0:02:47]} 8. Nxc6 {[%clk 0:02:53]}  bxc6 {[%clk 0:02:46]} 9. Bd4 {[%clk 0:02:52]}  Nf6 {[%clk 0:02:45]} 10. O-O {[%clk 0:02:51]}  O-O {[%clk 0:02:44]} 11. e5 {[%clk 0:02:41]}  dxe5 {[%clk 0:02:39]} 12. Bxe5 {[%clk 0:02:41]}  Qxd1 {[%clk 0:02:40]} 13. Rxd1 {[%clk 0:02:40]}  Bxf2+ {[%clk 0:02:40]} 14. Kf1 {[%clk 0:02:34]}  Ng4 {[%clk 0:02:33]} 15. Bf4 {[%clk 0:02:15]}  Be3 {[%clk 0:02:13]} 16. Bxc7 {[%clk 0:02:13]}  Nxh2+ {[%clk 0:01:52]} 17. Bxh2 {[%clk 0:02:12]}  Bg4 {[%clk 0:01:42]} 18. Re1 {[%clk 0:01:59]}  Rfe8 {[%clk 0:01:38]} 19. Be2 {[%clk 0:01:40]}  Bf5 {[%clk 0:01:36]} 20. Na3 {[%clk 0:01:38]}  Bc5 {[%clk 0:01:00]} 21. Nc4 {[%clk 0:01:35]}  Re4 {[%clk 0:00:56]} 22. Nd6 {[%clk 0:01:24]}  Rh4 {[%clk 0:00:55]} 23. Nxf5 {[%clk 0:01:24]}  Rxh2 {[%clk 0:00:55]} 24. Bf3 {[%clk 0:01:13]}  g6 {[%clk 0:00:38]} 25. Nd4 {[%clk 0:01:08]}  Rd8 {[%clk 0:00:31]} 26. Bxc6 {[%clk 0:01:03]}  Bxd4 {[%clk 0:00:24]} 27. cxd4 {[%clk 0:01:02]}  Rxd4 {[%clk 0:00:25]} 28. Kg1 {[%clk 0:00:53]}  Rh5 {[%clk 0:00:23]} 29. Rad1 {[%clk 0:00:52]}  Rc4 {[%clk 0:00:21]} 30. Bf3 {[%clk 0:00:47]}  Rhc5 {[%clk 0:00:21]} 31. Re2 {[%clk 0:00:41]}  Rc7 {[%clk 0:00:20]} 32. Kf2 {[%clk 0:00:41]}  h5 {[%clk 0:00:20]} 33. b3 {[%clk 0:00:41]}  Rc3 {[%clk 0:00:16]} 34. Rd8+ {[%clk 0:00:40]}  Kg7 {[%clk 0:00:16]} 35. Rde8 {[%clk 0:00:37]}  Kf6 {[%clk 0:00:15]} 36. R8e4 {[%clk 0:00:36]}  Kg5 {[%clk 0:00:10]} 37. Rd4 {[%clk 0:00:33]}  f5 {[%clk 0:00:08]} 38. Bd5 {[%clk 0:00:33]}  R3c5 {[%clk 0:00:07]} 39. Rc4 {[%clk 0:00:30]}  a5 {[%clk 0:00:05]} 40. Rxc5 {[%clk 0:00:30]}  Rxc5 {[%clk 0:00:06]} 41. Bc4 {[%clk 0:00:30]}  a4 {[%clk 0:00:07]} 42. Re6 {[%clk 0:00:27]}  axb3 {[%clk 0:00:07]} 43. axb3 {[%clk 0:00:27]}  h4 {[%clk 0:00:07]} 44. Rd6 {[%clk 0:00:27]}  Rc7 {[%clk 0:00:04]} 45. Kf3 {[%clk 0:00:25]}  Rb7 {[%clk 0:00:04]} 46. Bd5 {[%clk 0:00:25]}  Rc7 {[%clk 0:00:03]} 47. b4 {[%clk 0:00:25]}  Rc3+ {[%clk 0:00:03]} 48. Ke2 {[%clk 0:00:25]}  Kf4 {[%clk 0:00:02]} 49. Bf3 {[%clk 0:00:24]}  g5 {[%clk 0:00:02]} 50. Rd4+ {[%clk 0:00:23]}  Ke5 {[%clk 0:00:02]} 51. Rd5+ {[%clk 0:00:22]}  Kf4 {[%clk 0:00:03]} 52. Rc5 {[%clk 0:00:23]}  g4 {[%clk 0:00:03]} 53. Rxc3 {[%clk 0:00:23]}  h3 {[%clk 0:00:03]} 54. gxh3 {[%clk 0:00:22]}  gxh3 {[%clk 0:00:04]} 55. Bh1 {[%clk 0:00:22]}  Kg4 {[%clk 0:00:01]} 56. Rf3 {[%clk 0:00:23]}  h2 {[%clk 0:00:02]} 57. Kf2 {[%clk 0:00:23]}  f4 {[%clk 0:00:02]} 58. Kg2 {[%clk 0:00:23]}  Kh4 {[%clk 0:00:02]} 59. Kxh2 {[%clk 0:00:24]}  Kg4 {[%clk 0:00:03]} 60. b5 {[%clk 0:00:24]}  Kf5 {[%clk 0:00:04]} 61. b6 {[%clk 0:00:24]}  Kg4 {[%clk 0:00:03]} 62. b7 {[%clk 0:00:25]}  Kg5 {[%clk 0:00:03]} 63. b8=Q {[%clk 0:00:26]}  Kh4 {[%clk 0:00:03]} 64. Qxf4+ {[%clk 0:00:26]}  Kh5 {[%clk 0:00:03]} 65. Qg3 {[%clk 0:00:26]}  Kh6 {[%clk 0:00:01]} 66. Qg4 {[%clk 0:00:26]} 1-0

[Event "January 9 Late 2024"]
[Site "https://www.chess.com"]
[Date "2024.01.09"]
[Round "11"]
[White "Hungaski, Robert"]
[Black "Vlassov, Nikolai"]
[Result "1-0"]
[Board "70"]
[TimeControl "180+1"]
[WhiteFideId "2021030"]
[BlackFideId "4103360"]
[WhiteElo "2504"]
[BlackElo "2627"]
[WhiteTeam "USA"]
[BlackTeam "FID"]
[WhiteClock "0:00:11"]
[BlackClock "0:00:00"]

1. e4 {[%clk 0:03:00]}  c5 {[%clk 0:02:57]} 2. Nc3 {[%clk 0:02:59]}  g6 {[%clk 0:02:57]} 3. d4 {[%clk 0:02:59]}  cxd4 {[%clk 0:02:56]} 4. Qxd4 {[%clk 0:03:00]}  Nf6 {[%clk 0:02:53]} 5. Nf3 {[%clk 0:02:59]}  Nc6 {[%clk 0:02:52]} 6. Qa4 {[%clk 0:03:00]}  Qc7 {[%clk 0:02:35]} 7. Bg5 {[%clk 0:02:47]}  Bg7 {[%clk 0:02:27]} 8. O-O-O {[%clk 0:02:42]}  O-O {[%clk 0:02:16]} 9. Kb1 {[%clk 0:02:41]}  b5 {[%clk 0:01:28]} 10. Bxb5 {[%clk 0:02:35]}  Rb8 {[%clk 0:01:25]} 11. e5 {[%clk 0:02:21]}  Ne8 {[%clk 0:00:53]} 12. Bxc6 {[%clk 0:01:41]}  dxc6 {[%clk 0:00:53]} 13. Qh4 {[%clk 0:01:37]}  Bxe5 {[%clk 0:00:41]} 14. Nxe5 {[%clk 0:01:36]}  Qxe5 {[%clk 0:00:40]} 15. Bf4 {[%clk 0:01:27]}  Qxc3 {[%clk 0:00:40]} 16. Bxb8 {[%clk 0:01:28]}  Qc5 {[%clk 0:00:36]} 17. Qd4 {[%clk 0:01:22]}  Qb5 {[%clk 0:00:24]} 18. Bxa7 {[%clk 0:00:58]}  Nf6 {[%clk 0:00:24]} 19. c4 {[%clk 0:00:35]}  Qa6 {[%clk 0:00:23]} 20. Bc5 {[%clk 0:00:30]}  Bf5+ {[%clk 0:00:22]} 21. Ka1 {[%clk 0:00:29]}  Ra8 {[%clk 0:00:22]} 22. Ba3 {[%clk 0:00:22]}  Ne4 {[%clk 0:00:19]} 23. f3 {[%clk 0:00:20]}  c5 {[%clk 0:00:19]} 24. Qd5 {[%clk 0:00:19]}  Nf2 {[%clk 0:00:18]} 25. g4 {[%clk 0:00:17]}  Be6 {[%clk 0:00:14]} 26. Qxc5 {[%clk 0:00:17]}  Nxh1 {[%clk 0:00:14]} 27. Rxh1 {[%clk 0:00:17]}  Bxc4 {[%clk 0:00:12]} 28. Qxe7 {[%clk 0:00:16]}  Bd5 {[%clk 0:00:11]} 29. Rc1 {[%clk 0:00:14]}  Bxf3 {[%clk 0:00:09]} 30. g5 {[%clk 0:00:12]}  Rc8 {[%clk 0:00:08]} 31. Re1 {[%clk 0:00:11]}  Bd5 {[%clk 0:00:00]} 32. Qe8+ {[%clk 0:00:11]} 1-0

[Event "January 9 Late 2024"]
[Site "https://www.chess.com"]
[Date "2024.01.09"]
[Round "11"]
[White "Murtazin, Bulat"]
[Black "Gubajdullin, Alexei"]
[Result "1/2-1/2"]
[Board "71"]
[TimeControl "180+1"]
[WhiteFideId "24151351"]
[BlackFideId "4141202"]
[WhiteElo "2505"]
[BlackElo "2614"]
[WhiteTeam "RUS"]
[BlackTeam "RUS"]
[WhiteClock "0:00:03"]
[BlackClock "0:00:07"]

1. e4 {[%clk 0:03:00]}  e5 {[%clk 0:02:59]} 2. Nf3 {[%clk 0:03:00]}  Nf6 {[%clk 0:03:00]} 3. Nc3 {[%clk 0:03:00]}  Bb4 {[%clk 0:02:59]} 4. Nxe5 {[%clk 0:03:00]}  O-O {[%clk 0:02:59]} 5. Nd3 {[%clk 0:03:01]}  Bxc3 {[%clk 0:02:59]} 6. dxc3 {[%clk 0:03:02]}  Nxe4 {[%clk 0:03:00]} 7. Nf4 {[%clk 0:03:02]}  Re8 {[%clk 0:03:00]} 8. Be2 {[%clk 0:03:03]}  b6 {[%clk 0:02:52]} 9. O-O {[%clk 0:03:02]}  Bb7 {[%clk 0:02:52]} 10. c4 {[%clk 0:03:02]}  d6 {[%clk 0:02:52]} 11. f3 {[%clk 0:03:01]}  Nc5 {[%clk 0:02:47]} 12. Rf2 {[%clk 0:03:01]}  Nbd7 {[%clk 0:02:47]} 13. b3 {[%clk 0:02:58]}  Qf6 {[%clk 0:02:40]} 14. Rb1 {[%clk 0:02:58]}  Qf5 {[%clk 0:02:20]} 15. g4 {[%clk 0:02:25]}  Qe5 {[%clk 0:02:16]} 16. Nh5 {[%clk 0:02:00]}  g6 {[%clk 0:01:58]} 17. Bb2 {[%clk 0:01:57]}  Qg5 {[%clk 0:01:50]} 18. Ng3 {[%clk 0:01:43]}  Ne6 {[%clk 0:01:47]} 19. Bf1 {[%clk 0:00:55]}  Ne5 {[%clk 0:01:44]} 20. f4 {[%clk 0:00:47]}  Nxf4 {[%clk 0:01:42]} 21. Bc1 {[%clk 0:00:47]}  Nxg4 {[%clk 0:01:16]} 22. Rxf4 {[%clk 0:00:47]}  Qc5+ {[%clk 0:01:05]} 23. Qd4 {[%clk 0:00:40]}  Qxd4+ {[%clk 0:00:32]} 24. Rxd4 {[%clk 0:00:41]}  Ne5 {[%clk 0:00:32]} 25. Bg2 {[%clk 0:00:35]}  Nf3+ {[%clk 0:00:31]} 26. Bxf3 {[%clk 0:00:33]}  Bxf3 {[%clk 0:00:31]} 27. Kf2 {[%clk 0:00:32]}  Bc6 {[%clk 0:00:30]} 28. Bb2 {[%clk 0:00:29]}  f5 {[%clk 0:00:29]} 29. h4 {[%clk 0:00:28]}  Kf7 {[%clk 0:00:27]} 30. Re1 {[%clk 0:00:28]}  Rxe1 {[%clk 0:00:26]} 31. Kxe1 {[%clk 0:00:29]}  Re8+ {[%clk 0:00:26]} 32. Kf2 {[%clk 0:00:29]}  h6 {[%clk 0:00:26]} 33. h5 {[%clk 0:00:26]}  Bd7 {[%clk 0:00:22]} 34. hxg6+ {[%clk 0:00:19]}  Kxg6 {[%clk 0:00:22]} 35. Rh4 {[%clk 0:00:18]}  Bc6 {[%clk 0:00:21]} 36. Bc1 {[%clk 0:00:18]}  Rh8 {[%clk 0:00:21]} 37. Bf4 {[%clk 0:00:17]}  h5 {[%clk 0:00:20]} 38. Ne2 {[%clk 0:00:15]}  Be4 {[%clk 0:00:20]} 39. Rh3 {[%clk 0:00:14]}  Bxc2 {[%clk 0:00:19]} 40. Rg3+ {[%clk 0:00:14]}  Kf7 {[%clk 0:00:19]} 41. Nd4 {[%clk 0:00:13]}  Bb1 {[%clk 0:00:19]} 42. a4 {[%clk 0:00:12]}  Rg8 {[%clk 0:00:18]} 43. Rxg8 {[%clk 0:00:10]}  Kxg8 {[%clk 0:00:18]} 44. Nb5 {[%clk 0:00:08]}  Bc2 {[%clk 0:00:18]} 45. Nd4 {[%clk 0:00:08]}  Bb1 {[%clk 0:00:15]} 46. b4 {[%clk 0:00:05]}  a6 {[%clk 0:00:15]} 47. a5 {[%clk 0:00:05]}  bxa5 {[%clk 0:00:14]} 48. bxa5 {[%clk 0:00:06]}  Ba2 {[%clk 0:00:12]} 49. c5 {[%clk 0:00:06]}  dxc5 {[%clk 0:00:12]} 50. Nxf5 {[%clk 0:00:06]}  c4 {[%clk 0:00:10]} 51. Bxc7 {[%clk 0:00:05]}  c3 {[%clk 0:00:10]} 52. Ke3 {[%clk 0:00:05]}  Bb1 {[%clk 0:00:09]} 53. Nh4 {[%clk 0:00:04]}  Kf7 {[%clk 0:00:08]} 54. Be5 {[%clk 0:00:03]}  c2 {[%clk 0:00:09]} 55. Kd2 {[%clk 0:00:04]}  Ke6 {[%clk 0:00:09]} 56. Bc7 {[%clk 0:00:03]}  Kd5 {[%clk 0:00:09]} 57. Kc1 {[%clk 0:00:03]}  Ke4 {[%clk 0:00:09]} 58. Bd8 {[%clk 0:00:02]}  Kf4 {[%clk 0:00:09]} 59. Be7 {[%clk 0:00:02]}  Kg4 {[%clk 0:00:09]} 60. Bd8 {[%clk 0:00:02]}  Kg3 {[%clk 0:00:09]} 61. Ng6 {[%clk 0:00:01]}  Kg4 {[%clk 0:00:09]} 62. Be7 {[%clk 0:00:01]}  Kf5 {[%clk 0:00:08]} 63. Nh4+ {[%clk 0:00:01]}  Kg4 {[%clk 0:00:08]} 64. Kd2 {[%clk 0:00:02]}  Kf4 {[%clk 0:00:07]} 65. Bd8 {[%clk 0:00:03]}  Kg4 {[%clk 0:00:07]} 66. Be7 {[%clk 0:00:03]}  Kf4 {[%clk 0:00:07]} 67. Bd8 {[%clk 0:00:03]}  Kg4 {[%clk 0:00:07]} 68. Be7 {[%clk 0:00:03]} 1/2-1/2

[Event "January 9 Late 2024"]
[Site "https://www.chess.com"]
[Date "2024.01.09"]
[Round "11"]
[White "Peycheva, Gergana"]
[Black "Przybylski, Wojciech"]
[Result "0-1"]
[Board "76"]
[TimeControl "180+1"]
[WhiteFideId "2916711"]
[BlackFideId "1117599"]
[WhiteElo "2448"]
[BlackElo "2554"]
[WhiteTeam "BUL"]
[BlackTeam "POL"]
[WhiteClock "0:00:00"]
[BlackClock "0:00:11"]

1. d4 {[%clk 0:03:00]}  Nf6 {[%clk 0:02:55]} 2. c4 {[%clk 0:03:00]}  e6 {[%clk 0:02:55]} 3. Nc3 {[%clk 0:03:00]}  Bb4 {[%clk 0:02:55]} 4. Qc2 {[%clk 0:02:59]}  d5 {[%clk 0:02:54]} 5. cxd5 {[%clk 0:02:57]}  Qxd5 {[%clk 0:02:54]} 6. Nf3 {[%clk 0:02:56]}  Qf5 {[%clk 0:02:54]} 7. Qxf5 {[%clk 0:02:56]}  exf5 {[%clk 0:02:54]} 8. a3 {[%clk 0:02:57]}  Be7 {[%clk 0:02:51]} 9. Bg5 {[%clk 0:02:56]}  c6 {[%clk 0:02:51]} 10. e3 {[%clk 0:02:54]}  Be6 {[%clk 0:02:50]} 11. Bd3 {[%clk 0:02:54]}  Nbd7 {[%clk 0:02:49]} 12. O-O {[%clk 0:02:54]}  g6 {[%clk 0:02:48]} 13. Rfe1 {[%clk 0:02:50]}  Nd5 {[%clk 0:02:29]} 14. Bxe7 {[%clk 0:02:49]}  Kxe7 {[%clk 0:02:26]} 15. e4 {[%clk 0:02:47]}  fxe4 {[%clk 0:02:26]} 16. Nxe4 {[%clk 0:02:45]}  h6 {[%clk 0:02:22]} 17. Ne5 {[%clk 0:02:42]}  Rad8 {[%clk 0:02:16]} 18. Bc4 {[%clk 0:02:37]}  Nxe5 {[%clk 0:02:04]} 19. dxe5 {[%clk 0:02:35]}  b6 {[%clk 0:02:01]} 20. Nd6 {[%clk 0:02:33]}  Rd7 {[%clk 0:01:57]} 21. Rac1 {[%clk 0:02:28]}  a5 {[%clk 0:01:53]} 22. Be2 {[%clk 0:02:28]}  Rc7 {[%clk 0:01:51]} 23. Bf3 {[%clk 0:02:26]}  c5 {[%clk 0:01:40]} 24. Red1 {[%clk 0:02:19]}  Nf4 {[%clk 0:01:38]} 25. g3 {[%clk 0:02:19]}  Nh3+ {[%clk 0:01:36]} 26. Kg2 {[%clk 0:02:12]}  Ng5 {[%clk 0:01:35]} 27. Be2 {[%clk 0:02:10]}  Rd8 {[%clk 0:01:20]} 28. h4 {[%clk 0:02:09]}  Nh7 {[%clk 0:01:18]} 29. Bf3 {[%clk 0:02:06]}  h5 {[%clk 0:01:14]} 30. Rd2 {[%clk 0:01:57]}  Nf8 {[%clk 0:01:13]} 31. Rcd1 {[%clk 0:01:57]}  Rb8 {[%clk 0:01:06]} 32. Nb5 {[%clk 0:01:43]}  Rd7 {[%clk 0:01:06]} 33. Nd6 {[%clk 0:01:24]}  Rdd8 {[%clk 0:00:48]} 34. Be4 {[%clk 0:01:00]}  Bb3 {[%clk 0:00:39]} 35. Re1 {[%clk 0:00:57]}  Ne6 {[%clk 0:00:38]} 36. Re3 {[%clk 0:00:51]}  a4 {[%clk 0:00:34]} 37. f4 {[%clk 0:00:43]}  Nd4 {[%clk 0:00:33]} 38. f5 {[%clk 0:00:38]}  gxf5 {[%clk 0:00:32]} 39. Bxf5 {[%clk 0:00:37]}  Bd5+ {[%clk 0:00:26]} 40. Be4 {[%clk 0:00:35]}  Be6 {[%clk 0:00:23]} 41. Rf2 {[%clk 0:00:31]}  b5 {[%clk 0:00:22]} 42. Nb7 {[%clk 0:00:22]}  Rdc8 {[%clk 0:00:20]} 43. Rc3 {[%clk 0:00:18]}  c4 {[%clk 0:00:19]} 44. Nd6 {[%clk 0:00:17]}  Rd8 {[%clk 0:00:18]} 45. Rc1 {[%clk 0:00:15]}  Rxd6 {[%clk 0:00:18]} 46. exd6+ {[%clk 0:00:14]}  Kxd6 {[%clk 0:00:18]} 47. Rd2 {[%clk 0:00:13]}  Kc5 {[%clk 0:00:19]} 48. Rf2 {[%clk 0:00:12]}  b4 {[%clk 0:00:18]} 49. Bd3 {[%clk 0:00:09]}  bxa3 {[%clk 0:00:15]} 50. bxa3 {[%clk 0:00:09]}  Rb3 {[%clk 0:00:14]} 51. Bf1 {[%clk 0:00:08]}  Rxa3 {[%clk 0:00:15]} 52. Rf4 {[%clk 0:00:07]}  Bd5+ {[%clk 0:00:14]} 53. Kh3 {[%clk 0:00:04]}  Ra2 {[%clk 0:00:14]} 54. Rxd4 {[%clk 0:00:02]}  Kxd4 {[%clk 0:00:13]} 55. Rd1+ {[%clk 0:00:02]}  Kc5 {[%clk 0:00:13]} 56. Rc1 {[%clk 0:00:03]}  Be6+ {[%clk 0:00:13]} 57. g4 {[%clk 0:00:02]}  hxg4+ {[%clk 0:00:14]} 58. Kg3 {[%clk 0:00:03]}  Ra3+ {[%clk 0:00:14]} 59. Kf4 {[%clk 0:00:03]}  Rf3+ {[%clk 0:00:13]} 60. Kg5 {[%clk 0:00:03]}  a3 {[%clk 0:00:14]} 61. h5 {[%clk 0:00:03]}  a2 {[%clk 0:00:13]} 62. h6 {[%clk 0:00:02]}  f6+ {[%clk 0:00:12]} 63. Kg6 {[%clk 0:00:02]}  Kb4 {[%clk 0:00:12]} 64. h7 {[%clk 0:00:01]}  Bf5+ {[%clk 0:00:12]} 65. Kg7 {[%clk 0:00:01]}  Bxh7 {[%clk 0:00:12]} 66. Kxh7 {[%clk 0:00:02]}  Rf4 {[%clk 0:00:11]} 67. Rd1 {[%clk 0:00:01]}  Kb3 {[%clk 0:00:11]} 68. Kg6 {[%clk 0:00:00]}  Kb2 {[%clk 0:00:11]} 0-1

[Event "January 9 Late 2024"]
[Site "https://www.chess.com"]
[Date "2024.01.09"]
[Round "11"]
[White "Diaz Herquinio, Brahian"]
[Black "Erzhanov, Arman"]
[Result "0-1"]
[Board "77"]
[TimeControl "180+1"]
[WhiteFideId "3809480"]
[BlackFideId "4138821"]
[WhiteElo "2442"]
[BlackElo "2541"]
[WhiteTeam "PER"]
[BlackTeam "KAZ"]
[WhiteClock "0:00:55"]
[BlackClock "0:01:52"]

1. e4 {[%clk 0:02:56]}  c5 {[%clk 0:02:59]} 2. Nf3 {[%clk 0:02:55]}  Nc6 {[%clk 0:02:59]} 3. d4 {[%clk 0:02:55]}  cxd4 {[%clk 0:02:59]} 4. Nxd4 {[%clk 0:02:56]}  Nf6 {[%clk 0:03:00]} 5. Nc3 {[%clk 0:02:55]}  e5 {[%clk 0:03:00]} 6. Ndb5 {[%clk 0:02:55]}  d6 {[%clk 0:03:00]} 7. Bg5 {[%clk 0:02:55]}  a6 {[%clk 0:03:01]} 8. Na3 {[%clk 0:02:55]}  b5 {[%clk 0:03:01]} 9. Nd5 {[%clk 0:02:55]}  Be7 {[%clk 0:03:02]} 10. Bxf6 {[%clk 0:02:56]}  Bxf6 {[%clk 0:03:03]} 11. c4 {[%clk 0:02:57]}  b4 {[%clk 0:03:02]} 12. Nc2 {[%clk 0:02:57]}  O-O {[%clk 0:03:01]} 13. Qf3 {[%clk 0:02:51]}  Bg5 {[%clk 0:02:49]} 14. h4 {[%clk 0:02:50]}  Bh6 {[%clk 0:02:47]} 15. g4 {[%clk 0:02:46]}  Bf4 {[%clk 0:02:46]} 16. Nxf4 {[%clk 0:02:44]}  exf4 {[%clk 0:02:47]} 17. Qxf4 {[%clk 0:02:45]}  Ne5 {[%clk 0:02:47]} 18. Ne3 {[%clk 0:02:43]}  b3 {[%clk 0:02:38]} 19. axb3 {[%clk 0:02:39]}  Qb6 {[%clk 0:02:38]} 20. Ra3 {[%clk 0:02:00]}  Qb4+ {[%clk 0:02:37]} 21. Ke2 {[%clk 0:02:00]}  Be6 {[%clk 0:02:32]} 22. Kd1 {[%clk 0:01:40]}  a5 {[%clk 0:02:26]} 23. h5 {[%clk 0:01:34]}  f6 {[%clk 0:02:15]} 24. h6 {[%clk 0:01:34]}  g6 {[%clk 0:02:10]} 25. Nc2 {[%clk 0:01:31]}  Qb6 {[%clk 0:02:04]} 26. Be2 {[%clk 0:01:21]}  a4 {[%clk 0:02:03]} 27. Ne3 {[%clk 0:01:05]}  axb3 {[%clk 0:02:00]} 28. Rxa8 {[%clk 0:01:01]}  Rxa8 {[%clk 0:02:01]} 29. Qxf6 {[%clk 0:01:00]}  Ra1+ {[%clk 0:01:52]} 30. Kd2 {[%clk 0:00:55]}  Qd4+ {[%clk 0:01:52]} 0-1

[Event "January 9 Late 2024"]
[Site "https://www.chess.com"]
[Date "2024.01.09"]
[Round "11"]
[White "Khater, Sherif"]
[Black "Figorito, Nick"]
[Result "1-0"]
[Board "79"]
[TimeControl "180+1"]
[WhiteFideId "2034280"]
[BlackFideId "30923689"]
[WhiteElo "2535"]
[BlackElo "2421"]
[WhiteTeam "USA"]
[BlackTeam "USA"]
[WhiteClock "0:00:01"]
[BlackClock "0:00:03"]

1. d4 {[%clk 0:03:00]}  Nf6 {[%clk 0:03:00]} 2. Bg5 {[%clk 0:02:54]}  d5 {[%clk 0:02:59]} 3. Bxf6 {[%clk 0:02:52]}  exf6 {[%clk 0:03:00]} 4. e3 {[%clk 0:02:52]}  Bd6 {[%clk 0:03:00]} 5. c4 {[%clk 0:02:53]}  dxc4 {[%clk 0:03:00]} 6. Bxc4 {[%clk 0:02:54]}  O-O {[%clk 0:02:59]} 7. Qc2 {[%clk 0:02:54]}  c6 {[%clk 0:02:59]} 8. Nf3 {[%clk 0:02:55]}  Nd7 {[%clk 0:02:56]} 9. h4 {[%clk 0:02:55]}  c5 {[%clk 0:02:26]} 10. Nc3 {[%clk 0:02:44]}  cxd4 {[%clk 0:02:24]} 11. Nxd4 {[%clk 0:02:40]}  Ne5 {[%clk 0:02:18]} 12. Be2 {[%clk 0:02:39]}  Bb4 {[%clk 0:02:11]} 13. O-O-O {[%clk 0:02:39]}  Qa5 {[%clk 0:02:09]} 14. Nb3 {[%clk 0:02:31]}  Qc7 {[%clk 0:02:00]} 15. Kb1 {[%clk 0:01:56]}  Bxc3 {[%clk 0:01:59]} 16. bxc3 {[%clk 0:01:56]}  Nc4 {[%clk 0:01:56]} 17. Bxc4 {[%clk 0:01:53]}  Qxc4 {[%clk 0:01:57]} 18. Rd4 {[%clk 0:01:52]}  Qb5 {[%clk 0:01:49]} 19. g4 {[%clk 0:01:46]}  a5 {[%clk 0:01:48]} 20. Ka1 {[%clk 0:01:35]}  Be6 {[%clk 0:01:45]} 21. g5 {[%clk 0:01:19]}  a4 {[%clk 0:01:41]} 22. Nc1 {[%clk 0:01:12]}  f5 {[%clk 0:01:33]} 23. h5 {[%clk 0:01:09]}  Rfc8 {[%clk 0:01:29]} 24. g6 {[%clk 0:01:08]}  Qc6 {[%clk 0:01:23]} 25. gxh7+ {[%clk 0:01:07]}  Kxh7 {[%clk 0:01:24]} 26. h6 {[%clk 0:01:00]}  Qxh1 {[%clk 0:01:23]} 27. hxg7 {[%clk 0:00:51]}  Kxg7 {[%clk 0:01:15]} 28. Qd2 {[%clk 0:00:44]}  Qc6 {[%clk 0:00:55]} 29. Ne2 {[%clk 0:00:41]}  a3 {[%clk 0:00:52]} 30. e4 {[%clk 0:00:40]}  Ra4 {[%clk 0:00:42]} 31. Qg5+ {[%clk 0:00:39]}  Kf8 {[%clk 0:00:36]} 32. Qh6+ {[%clk 0:00:25]}  Kg8 {[%clk 0:00:14]} 33. Rd1 {[%clk 0:00:10]}  Rxe4 {[%clk 0:00:10]} 34. Rh1 {[%clk 0:00:06]}  f6 {[%clk 0:00:02]} 35. Qh8+ {[%clk 0:00:01]}  Kf7 {[%clk 0:00:03]} 36. Rh7+ {[%clk 0:00:01]}  Kg6 {[%clk 0:00:03]} 37. Qg7# {[%clk 0:00:01]} 1-0